bitfinex/quotes_ETHUSD_20240701
["timestamp","ask_amount","ask_price","bid_price","bid_amount"]
[1719799553404,3.5151908,3515.8,3514.9,7.32]
[1719799553557,1.43555188,3515.7,3514.9,7.32]
[1719799553878,4.27995188,3515.7,3514.9,7.32]
[1719799554693,2.84452,3515.6,3514.9,7.32]
[1719799554857,1.43555188,3515.7,3514.9,7.32]
[1719799555274,4.27999188,3515.7,3514.9,7.32]
[1719799555595,4.27999188,3515.7,3514.6,2.84519]
[1719799555596,1.01242119,3515.6,3514.6,2.84519]
[1719799556094,2.84454,3515.5,3514.5,7.32]
[1719799556402,2.84454,3515.5,3514.5,10.16533]
[1719799557475,4.5156,3515.3,3514.4,2.84541]
[1719799557810,0.736023,3515.2,3514.5,2.84534]
[1719799558019,4.5156,3515.3,3514.6,2.84526]
[1719799558306,3.85689119,3515.6,3514.6,2.84526]
[1719799559999,3.85689119,3515.6,3514.7,2.84518]
[1719799560204,1.01242119,3515.6,3514.7,2.84518]
[1719799560391,1.13576712,3515.5,3514.7,2.84518]
[1719799560730,4.3868,3515.4,3514.0,0.142]
[1719799560960,2.84496,3515.0,3514.0,0.142]
[1719799561313,2.84496,3515.0,3514.0,2.98774]
[1719799561516,0.568976,3514.9,3514.0,0.142]
[1719799561718,3.0,3515.3,3514.4,2.84541]
[1719799563119,3.0,3515.3,3514.3,2.018]
[1719799564270,4.3868,3515.4,3514.5,2.84534]
[1719799564472,2.84444,3515.7,3514.6,2.84526]
[1719799564638,1.004244,3515.6,3514.5,2.84532]
[1719799564965,2.84439,3515.7,3514.5,2.84532]
[1719799565170,2.84447,3515.6,3514.5,2.84532]
[1719799565451,2.84455,3515.5,3514.3,4.86351]
[1719799565766,2.84447,3515.6,3514.6,2.84526]
[1719799566656,2.84447,3515.6,3514.7,2.84518]
[1719799566863,3.0,3515.7,3514.3,2.018]
[1719799567061,2.84398,3516.2,3515.2,2.84473]
[1719799567222,0.284405,3516.1,3515.0,2.84494]
[1719799567420,0.284405,3516.1,3515.2,2.84471]
[1719799568771,2.84376,3516.5,3515.4,2.84457]
[1719799568984,7.29643,3516.9,3515.6,2.8444]
[1719799569273,4.453,3516.9,3515.2,10.16473]
[1719799569448,0.4453,3516.8,3515.2,10.16473]
[1719799569786,0.4453,3516.8,3515.9,2.84421]
[1719799570189,3.4453,3516.8,3515.9,2.84421]
[1719799570646,2.84383,3516.4,3515.2,7.32]
[1719799570847,4.351,3516.3,3515.3,2.8447]
[1719799571150,4.351,3516.3,3515.2,10.16477]
[1719799571151,5.354849,3516.3,3515.2,10.16477]
[1719799571489,4.351,3516.3,3515.7,2.84431]
[1719799571847,4.351,3516.3,3515.5,2.84453]
[1719799572051,4.351,3516.3,3515.6,2.84444]
[1719799574002,5.070467,3516.3,3515.4,2.84462]
[1719799574291,2.8443,3515.8,3515.2,7.32]
[1719799574661,2.84441,3515.7,3515.2,7.32]
[1719799574870,2.84441,3515.7,3514.7,7.32]
[1719799575073,3.413272,3515.7,3514.7,10.16517]
[1719799575279,2.84441,3515.7,3514.7,10.16517]
[1719799575599,4.3387,3515.6,3514.7,10.16517]
[1719799579196,7.18316,3515.6,3514.7,10.16517]
[1719799583725,4.3387,3515.6,3514.8,2.84509]
[1719799583901,5.057004,3515.6,3514.8,2.84509]
[1719799584106,0.719467,3516.3,3514.7,7.32]
[1719799584107,0.719467,3516.3,3514.9,4.5097]
[1719799584433,4.1765,3516.5,3515.6,2.84441]
[1719799585630,7.0203,3516.5,3515.1,2.018]
[1719799586048,2.84398,3516.2,3515.2,2.84478]
[1719799586548,4.2084,3516.1,3514.8,2.84509]
[1719799586705,2.84423,3515.9,3514.9,2.84502]
[1719799586902,0.989669,3515.8,3514.9,2.84502]
[1719799588002,0.989669,3515.8,3514.7,10.16519]
[1719799588003,0.989669,3515.8,3515.0,2.84494]
[1719799588613,0.989669,3515.8,3515.1,2.84482]
[1719799589729,0.989669,3515.8,3514.9,2.84499]
[1719799589927,0.989669,3515.8,3515.0,2.84492]
[1719799590132,0.6833809,3515.7,3515.0,2.84492]
[1719799591147,0.6833809,3515.7,3514.9,2.84502]
[1719799591306,0.6833809,3515.7,3515.0,2.8449]
[1719799591508,5.84415,3516.0,3515.0,2.8449]
[1719799591820,3.0,3516.0,3515.1,2.84486]
[1719799592206,2.84422,3515.9,3514.7,10.16517]
[1719799592454,2.84437,3515.8,3514.7,10.16517]
[1719799592606,0.868859,3515.7,3514.7,10.16517]
[1719799592803,3.0,3516.0,3514.8,4.2799]
[1719799593043,3.0,3516.5,3515.5,2.8445]
[1719799593247,3.0,3516.5,3515.5,2.84448]
[1719799593472,3.0,3516.5,3515.3,2.84464]
[1719799593473,2.84381,3516.4,3515.3,2.84464]
[1719799593672,2.84381,3516.4,3515.4,2.84462]
[1719799593841,4.297926,3516.3,3515.4,2.84462]
[1719799594435,7.141826,3516.3,3515.4,2.84462]
[1719799594637,4.297926,3516.3,3515.4,2.84462]
[1719799594838,1.297926,3516.3,3515.4,2.84462]
[1719799595680,4.141836,3516.3,3515.4,2.84462]
[1719799595837,3.7141836,3516.2,3515.4,2.84462]
[1719799596241,3.7141836,3516.2,3515.5,2.84447]
[1719799596456,3.7141836,3516.2,3515.6,2.84445]
[1719799596457,3.0,3516.1,3515.6,2.84445]
[1719799596661,0.7141836,3516.2,3515.5,0.05688844]
[1719799596861,3.0,3516.5,3515.8,2.84423]
[1719799597032,3.71353,3516.5,3515.8,2.84423]
[1719799597243,0.71353,3516.5,3515.8,2.84423]
[1719799597485,0.71353,3516.5,3515.9,2.84418]
[1719799598595,3.71353,3516.5,3515.7,2.84433]
[1719799598809,0.500533,3516.4,3515.5,2.84454]
[1719799599310,0.500533,3516.4,3515.6,2.84445]
[1719799600278,0.500533,3516.4,3515.3,7.32]
[1719799600483,1.0636083,3516.3,3515.5,2.84452]
[1719799602437,2.84398,3516.2,3515.3,7.32]
[1719799602726,2.84408,3516.1,3515.3,7.32]
[1719799603185,2.84423,3515.9,3515.3,7.32]
[1719799603389,0.984001,3515.8,3515.3,7.32]
[1719799606292,0.984001,3515.8,3514.8,10.16505]
[1719799611310,0.984001,3515.8,3514.8,7.32]
[1719799611311,2.8446,3515.5,3514.8,7.32]
[1719799611551,4.2056,3515.6,3514.8,7.32]
[1719799611727,2.84456,3515.5,3514.8,7.32]
[1719799612811,2.84479,3515.2,3514.8,7.32]
[1719799613011,3.129359,3515.1,3514.8,7.32]
[1719799613437,2.84495,3515.0,3514.8,7.32]
[1719799613613,2.84495,3515.0,3514.2,7.32]
[1719799614125,4.314,3514.9,3514.2,7.32]
[1719799614439,2.84511,3514.8,3514.0,0.142]
[1719799614610,3.845596,3514.7,3514.0,0.142]
[1719799614810,2.84519,3514.7,3514.0,0.142]
[1719799615012,2.84528,3514.6,3514.0,0.142]
[1719799617742,7.15904,3514.9,3514.0,0.142]
[1719799618036,5.84511,3514.8,3514.0,0.142]
[1719799618240,1.015911,3514.7,3514.0,0.142]
[1719799618487,4.4055,3514.6,3514.0,0.142]
[1719799618942,2.84565,3514.2,3514.0,0.142]
[1719799619339,2.84567,3514.1,3514.0,0.142]
[1719799620042,7.40367,3514.1,3514.0,0.142]
[1719799620241,8.298367,3514.1,3514.0,0.142]
[1719799620545,11.144037,3514.1,3514.0,0.142]
[1719799620989,13.989707,3514.1,3514.0,0.142]
[1719799625984,11.144037,3514.1,3514.0,0.142]
[1719799626188,3.861141,3514.7,3514.0,0.142]
[1719799626379,2.84533,3514.6,3514.0,0.142]
[1719799626953,2.84536,3514.5,3514.0,0.142]
[1719799628528,2.84544,3514.4,3514.0,0.142]
[1719799630006,2.84528,3514.6,3514.0,0.142]
[1719799630295,4.309619,3514.5,3514.0,0.142]
[1719799631008,3.0,3514.5,3514.0,0.142]
[1719799631199,4.1908,3515.7,3514.3,2.84551]
[1719799631505,4.1908,3515.7,3514.1,7.37206]
[1719799631506,2.84471,3515.3,3514.4,2.84541]
[1719799632103,4.1908,3515.7,3514.5,0.05690272]
[1719799632304,7.738751,3515.7,3514.6,2.84527]
[1719799632517,3.0,3515.6,3514.6,2.84527]
[1719799633005,3.0,3515.6,3514.7,2.84519]
[1719799633369,4.2376,3516.2,3514.8,0.05689848]
[1719799633615,2.8443,3515.8,3514.9,4.2231]
[1719799633797,0.568844,3515.8,3514.9,2.84499]
[1719799634116,2.84414,3516.0,3514.9,2.84499]
[1719799634578,2.84414,3516.0,3515.0,2.84494]
[1719799634782,3.0,3515.9,3515.0,2.84494]
[1719799635573,3.0,3515.9,3515.2,2.84476]
[1719799635773,5.84409,3516.1,3515.1,0.05689312]
[1719799636034,6.552249,3516.1,3515.1,0.05689312]
[1719799637811,2.84414,3516.0,3515.0,2.84491]
[1719799637973,3.0,3515.9,3515.0,2.84491]
[1719799638172,4.0789899,3515.9,3515.0,2.84491]
[1719799638532,4.0789899,3515.9,3515.1,2.84486]
[1719799638877,3.0,3515.9,3515.4,2.84462]
[1719799639376,2.84391,3516.3,3515.2,2.90163145]
[1719799639702,3.0,3516.2,3515.2,2.90163145]
[1719799639921,5.84382,3516.4,3515.2,2.90163145]
[1719799640309,2.84395,3516.3,3515.2,2.90163145]
[1719799640507,4.070577,3516.2,3515.2,2.90163145]
[1719799640822,6.914607,3516.2,3515.2,2.90163145]
[1719799641714,6.914607,3516.2,3515.3,2.84469]
[1719799642745,4.070577,3516.2,3515.3,2.84469]
[1719799642927,2.84382,3516.4,3515.4,2.84458]
[1719799642928,3.0,3516.1,3515.4,2.84458]
[1719799643250,3.0,3516.3,3515.5,0.05688761]
[1719799643431,3.0,3516.5,3515.6,2.84444]
[1719799644303,3.0,3516.5,3515.7,2.84438]
[1719799644502,1.007266,3516.4,3515.7,2.84438]
[1719799645003,1.007266,3516.4,3515.6,2.84445]
[1719799645447,1.007266,3516.4,3515.7,2.84437]
[1719799645649,3.0,3516.5,3515.8,2.84427]
[1719799646154,3.0,3516.7,3515.8,2.84427]
[1719799647226,3.0,3516.7,3515.6,2.84446]
[1719799647437,3.0,3516.8,3515.6,2.84446]
[1719799647667,2.84365,3516.6,3515.6,2.84446]
[1719799647956,3.584365,3516.5,3515.6,2.84446]
[1719799649011,3.584365,3516.5,3515.5,2.90142379]
[1719799649222,3.0,3516.7,3515.8,2.84429]
[1719799649460,3.0,3516.7,3515.9,2.84418]
[1719799654062,3.0,3516.7,3516.0,2.84413]
[1719799654257,5.84346,3516.9,3516.0,2.84413]
[1719799654418,1.302033,3516.8,3516.0,2.84413]
[1719799663852,2.142033,3516.8,3516.1,2.84405]
[1719799665740,2.142033,3516.8,3515.9,2.84416]
[1719799666293,2.142033,3516.8,3516.0,2.84413]
[1719799666591,1.2318993,3516.7,3516.0,2.84413]
[1719799669876,1.2318993,3516.7,3515.4,7.32]
[1719799669877,0.84,3516.3,3515.4,11.7583]
[1719799670183,2.84373,3516.5,3515.4,11.7583]
[1719799670390,0.84,3516.2,3515.6,2.84446]
[1719799670952,3.84,3516.4,3515.6,2.84446]
[1719799671174,0.668373,3516.3,3515.6,2.84446]
[1719799671758,1.2318993,3516.7,3515.8,0.84]
[1719799671957,4.2969,3517.6,3516.3,0.84]
[1719799672158,4.2969,3517.6,3516.7,3.68356]
[1719799672558,7.13975,3517.6,3516.7,3.68356]
[1719799672885,4.3398,3518.0,3517.2,3.68311]
[1719799673095,3.126643,3518.2,3517.2,3.68311]
[1719799673248,0.84,3518.1,3517.2,3.68311]
[1719799673861,3.68245,3518.1,3517.2,3.68311]
[1719799674064,0.6808973,3518.0,3517.2,3.68311]
[1719799674440,0.284233,3518.2,3517.4,2.84298]
[1719799674690,0.284233,3518.2,3517.5,2.8429]
[1719799675544,0.284233,3518.2,3517.5,0.05685488]
[1719799675748,2.842,3518.7,3517.5,0.05685488]
[1719799675990,2.842,3518.7,3517.7,2.84274]
[1719799676958,3.0,3518.6,3517.7,2.84274]
[1719799677153,2.84212,3518.5,3517.5,2.89976488]
[1719799677389,3.868412,3518.4,3517.6,2.84283]
[1719799677811,3.868412,3518.4,3517.4,2.84296]
[1719799678095,3.868412,3518.4,3517.5,2.84286]
[1719799678388,3.868412,3518.4,3517.6,2.84283]
[1719799679389,3.868412,3518.4,3517.5,2.84286]
[1719799680279,6.710612,3518.4,3517.4,2.843]
[1719799680597,6.710612,3518.4,3517.5,2.8429]
[1719799680774,3.0,3518.4,3517.7,2.84269]
[1719799681085,5.84197,3518.7,3517.7,2.84269]
[1719799681587,3.0,3518.7,3517.7,2.84269]
[1719799681799,3.0,3518.7,3517.8,2.84264]
[1719799682002,1.014252,3518.6,3517.4,2.84292]
[1719799682653,2.84222,3518.4,3517.5,2.84288]
[1719799682852,3.0,3518.3,3517.5,2.84288]
[1719799683305,3.0,3518.3,3517.6,2.89968141]
[1719799683451,3.0,3518.5,3517.9,2.84253]
[1719799683750,3.714248,3518.7,3517.9,2.84253]
[1719799683951,2.84142,3519.4,3518.5,2.84211]
[1719799684553,2.84142,3519.4,3518.3,2.84221]
[1719799684747,2.84155,3519.2,3518.2,10.16235]
[1719799684948,2.84142,3519.4,3518.3,2.84227]
[1719799686152,3.0,3519.3,3518.4,2.84219]
[1719799686354,4.288393,3519.3,3518.4,2.84219]
[1719799686702,2.84189,3518.8,3518.2,7.32]
[1719799687565,2.8418,3518.9,3518.2,7.32]
[1719799687770,2.84194,3518.8,3518.2,7.32]
[1719799688084,0.284194,3518.7,3518.2,7.32]
[1719799688268,2.84205,3518.6,3518.2,7.32]
[1719799688469,2.84205,3518.6,3517.7,4.3924]
[1719799688470,2.84205,3518.6,3517.7,14.55515]
[1719799688800,0.284194,3518.7,3517.7,14.55515]
[1719799689294,2.84205,3518.6,3517.7,11.7124]
[1719799689456,2.84228,3518.3,3517.7,7.32]
[1719799689655,2.8422,3518.4,3517.7,7.32]
[1719799689870,2.8422,3518.4,3517.7,7.462]
[1719799690092,2.8422,3518.4,3517.7,0.142]
[1719799690298,2.84245,3518.1,3517.7,0.142]
[1719799690789,2.84268,3517.8,3517.7,0.142]
[1719799690971,5.68536,3517.8,3517.7,0.142]
[1719799691761,2.84268,3517.8,3517.7,0.142]
[1719799693317,2.84261,3517.9,3517.7,0.142]
[1719799693484,3.1837875,3517.8,3517.7,0.142]
[1719799697412,0.3411075,3517.8,3517.7,0.142]
[1719799697616,2.84253,3518.0,3517.7,0.142]
[1719799697777,3.0,3517.9,3517.7,0.142]
[1719799699111,5.8426,3517.9,3517.7,0.142]
[1719799699493,2.84268,3517.8,3517.7,0.142]
[1719799699700,3.7680475,3517.8,3517.7,0.142]
[1719799700020,0.9253675,3517.8,3517.7,0.142]
[1719799704640,3.7680475,3517.8,3517.7,0.142]
[1719799704953,0.9253675,3517.8,3517.7,0.142]
[1719799705158,3.0,3518.0,3517.7,0.142]
[1719799705363,2.8423,3518.3,3517.7,0.142]
[1719799705656,3.0,3518.2,3517.7,0.142]
[1719799706015,2.84208,3518.6,3517.7,0.142]
[1719799706215,1.0089674,3518.6,3517.7,7.21846043]
[1719799706435,3.126194,3518.7,3517.8,0.05684833]
[1719799706770,2.84179,3518.9,3517.8,0.05684833]
[1719799707322,2.84179,3518.9,3517.9,2.8426]
[1719799707552,3.0,3518.8,3518.0,2.84246]
[1719799707716,3.0,3519.0,3518.2,2.84234]
[1719799708051,3.0,3519.0,3517.8,2.84268]
[1719799708237,0.897804,3519.1,3517.8,2.84268]
[1719799708444,1.0034204,3519.0,3517.8,2.84268]
[1719799708652,2.842,3518.7,3517.8,2.84268]
[1719799708856,3.0,3518.6,3517.8,2.84268]
[1719799709720,2.84213,3518.5,3517.7,4.3189]
[1719799712516,2.8423,3518.3,3517.7,0.142]
[1719799712723,3.34563735,3518.3,3517.7,0.142]
[1719799714177,2.84254,3518.0,3517.7,0.142]
[1719799715269,2.84268,3517.8,3517.7,0.142]
[1719799719639,5.68536,3517.8,3517.7,0.142]
[1719799719847,6.253896,3517.8,3517.7,0.142]
[1719799720046,9.253896,3517.8,3517.7,0.142]
[1719799720443,12.096576,3517.8,3517.7,0.142]
[1719799720839,40.812526,3517.8,3517.7,1e-05]
[1719799721140,41.362526,3517.8,3517.7,1e-05]
[1719799721530,42.41834721,3517.8,3517.7,1e-05]
[1719799721730,43.16834721,3517.8,3517.7,1e-05]
[1719799722832,30.97993121,3517.8,3517.7,1e-05]
[1719799723042,2.84315,3517.3,3517.1,7.32]
[1719799723572,3.0,3517.2,3517.1,7.32]
[1719799723809,5.84317,3517.2,3517.1,7.32]
[1719799724375,3.0,3517.2,3517.1,7.32]
[1719799724538,3.0,3517.6,3517.1,7.32]
[1719799724742,5.8429,3517.6,3517.1,7.32]
[1719799725087,2.84295,3517.5,3517.1,7.32]
[1719799725242,3.0,3517.6,3517.1,7.32]
[1719799725243,3.0,3517.4,3517.1,7.32]
[1719799725443,3.0,3517.6,3516.7,12.47]
[1719799725642,3.0,3517.7,3516.6,10.16362]
[1719799725875,2.84308,3517.3,3516.6,7.32]
[1719799726040,2.84307,3517.4,3516.6,7.32]
[1719799726235,3.584268,3517.7,3516.6,7.32]
[1719799726236,3.0,3517.3,3516.6,7.32]
[1719799726482,3.584268,3517.7,3516.6,7.32]
[1719799726679,0.584268,3517.7,3516.6,7.32]
[1719799726863,2.8431,3517.3,3516.6,7.32]
[1719799727892,0.3584268,3517.6,3516.6,7.32]
[1719799728195,2.84293,3517.5,3516.6,7.32]
[1719799728543,3.0,3517.4,3516.6,7.32]
[1719799728889,2.015,3518.0,3516.6,7.32]
[1719799728890,4.2272,3518.2,3516.7,4.313]
[1719799729191,2.84284,3517.6,3516.8,0.0568616]
[1719799729540,2.84273,3517.8,3516.8,0.0568616]
[1719799729977,3.0,3517.7,3516.8,0.0568616]
[1719799730201,5.84279,3517.7,3516.7,7.15657]
[1719799732116,2.84284,3517.6,3516.7,4.313]
[1719799732322,2.84294,3517.5,3516.7,4.313]
[1719799733375,2.84301,3517.4,3516.7,4.313]
[1719799734514,2.84309,3517.3,3516.7,4.313]
[1719799734867,2.84318,3517.2,3516.7,4.313]
[1719799735071,0.868553,3517.6,3516.7,4.36986734]
[1719799735302,2.84274,3517.8,3516.8,0.05686504]
[1719799735508,3.0,3517.7,3516.8,2.90034504]
[1719799735709,3.0,3517.9,3516.8,2.90034504]
[1719799736474,3.0,3517.9,3516.8,0.05686504]
[1719799736713,5.84267,3517.9,3516.8,2.90032504]
[1719799736889,2.8427,3517.8,3516.8,2.90032504]
[1719799737094,3.0,3517.7,3516.9,2.8434]
[1719799737402,3.0,3517.7,3517.0,0.05685954]
[1719799738187,4.08270347,3517.9,3517.0,2.90016954]
[1719799738389,3.0,3517.9,3517.1,0.05685901]
[1719799738691,2.84245,3518.1,3517.2,7.02136]
[1719799738910,3.0,3518.0,3517.3,0.05685588]
[1719799739943,4.85685,3518.9,3517.6,2.84284]
[1719799740089,4.85685,3518.9,3517.7,4.51614666]
[1719799740090,0.914365,3518.9,3517.7,4.51614666]
[1719799740290,4.2868,3519.0,3517.7,4.51614666]
[1719799740291,2.84177,3519.0,3517.9,2.84258]
[1719799740629,2.84171,3519.0,3517.8,0.05684579]
[1719799740830,2.84188,3518.8,3517.8,2.89946579]
[1719799741033,2.84188,3518.8,3517.9,2.8426]
[1719799741212,2.84161,3519.2,3518.0,0.05684506]
[1719799741388,1.198496,3519.1,3518.0,2.84246]
[1719799742027,4.198496,3519.1,3518.0,2.84246]
[1719799742387,7.040186,3519.1,3518.0,2.84246]
[1719799743302,2.015,3519.0,3517.7,4.4593]
[1719799743506,5.015,3519.0,3517.8,0.05684745]
[1719799743854,2.84189,3518.8,3517.8,2.89951745]
[1719799744019,3.0,3518.7,3517.8,2.89951745]
[1719799745714,3.6213496,3518.9,3517.8,2.89951745]
[1719799746341,3.0,3518.9,3518.2,2.84235]
[1719799746546,4.198496,3519.1,3518.3,4.23603881]
[1719799746856,4.198496,3519.1,3518.3,7.07828881]
[1719799747017,1.198496,3519.1,3518.3,7.07828881]
[1719799747822,1.198496,3519.1,3518.3,7.02145]
[1719799748021,0.7039966,3519.0,3518.3,4.1792]
[1719799748512,0.7039966,3519.0,3518.3,7.02147]
[1719799749450,0.7039966,3519.0,3518.3,4.1792]
[1719799750313,5.84164,3519.1,3518.3,4.1792]
[1719799752666,2.84185,3518.9,3518.3,4.1792]
[1719799753168,2.84188,3518.8,3518.0,7.32]
[1719799755142,2.84197,3518.7,3518.0,7.32]
[1719799755872,2.84184,3518.9,3518.0,7.32]
[1719799756071,0.868349,3518.8,3518.0,7.32]
[1719799756230,5.84166,3519.1,3518.1,2.8992721]
[1719799756674,2.84172,3519.0,3518.1,2.84243]
[1719799757028,3.0,3519.1,3518.1,2.84243]
[1719799757270,5.84164,3519.1,3518.1,2.84243]
[1719799757438,5.84164,3519.1,3518.0,7.32]
[1719799757439,2.84172,3519.0,3518.0,7.32]
[1719799757775,0.868327,3518.9,3518.0,7.32]
[1719799758781,0.868327,3518.9,3518.0,10.16251]
[1719799759943,0.868327,3518.9,3518.0,7.32]
[1719799759944,3.710167,3518.9,3518.0,7.32]
[1719799761486,3.0,3518.8,3518.0,7.32]
[1719799761651,2.84214,3518.5,3518.0,7.32]
[1719799761973,0.284214,3518.4,3518.0,7.32]
[1719799762756,3.126414,3518.4,3518.0,7.32]
[1719799764251,3.126414,3518.4,3517.9,4.3164]
[1719799764865,2.84228,3518.3,3517.9,4.3164]
[1719799765067,2.84236,3518.2,3517.5,11.5927]
[1719799765256,2.84236,3518.2,3517.1,18.11319]
[1719799765257,4.2469,3518.7,3517.2,7.32]
[1719799765454,2.84264,3517.9,3517.2,7.32]
[1719799765653,2.84264,3517.9,3517.1,19.5427]
[1719799765654,2.84264,3517.9,3517.1,7.0727]
[1719799765855,2.84269,3517.8,3517.1,7.0727]
[1719799766858,2.84256,3518.0,3517.2,0.05685885]
[1719799767061,3.411065,3518.0,3517.1,7.0727]
[1719799767708,2.84262,3517.9,3517.1,7.0727]
[1719799768611,0.568505,3518.0,3517.1,7.0727]
[1719799768812,2.84236,3518.2,3517.2,2.89996757]
[1719799768975,3.0,3518.1,3517.3,2.89993317]
[1719799770267,3.0,3518.1,3517.3,0.05685317]
[1719799770510,3.0,3518.1,3517.3,2.89992317]
[1719799770710,4.85705,3518.6,3517.3,2.89992317]
[1719799770711,5.84229,3518.3,3517.3,2.89992317]
[1719799771005,3.710802,3518.2,3517.3,2.89992317]
[1719799771209,3.0,3518.1,3517.3,2.89992317]
[1719799772903,3.0,3518.1,3517.4,2.843]
[1719799773114,3.868442,3518.2,3517.3,0.05685317]
[1719799773520,0.868442,3518.2,3517.3,0.05685317]
[1719799773672,3.710822,3518.2,3517.3,2.89990317]
[1719799773869,2.8419,3518.8,3517.7,2.8427]
[1719799774107,2.84196,3518.7,3517.9,4.3931]
[1719799774307,2.84196,3518.7,3518.0,0.05684425]
[1719799774498,2.84173,3519.0,3518.0,0.05684425]
[1719799774706,0.736033,3518.9,3518.0,0.05684425]
[1719799775624,2.84189,3518.8,3518.0,0.05684425]
[1719799775930,3.0,3518.7,3518.0,0.05684425]
[1719799777208,2.84205,3518.6,3518.0,0.05684425]
[1719799777411,2.84217,3518.5,3517.9,4.3931]
[1719799777617,0.868422,3518.4,3517.6,10.16284]
[1719799777831,5.84201,3518.7,3517.6,10.16284]
[1719799778327,2.84203,3518.6,3517.6,10.16284]
[1719799778931,5.84196,3518.7,3517.6,7.32]
[1719799779107,2.84217,3518.5,3517.6,7.32]
[1719799779307,3.710583,3518.5,3517.6,7.32]
[1719799780249,3.710583,3518.5,3517.6,10.16284]
[1719799780538,0.868413,3518.5,3517.6,7.32]
[1719799780738,3.710533,3518.5,3517.6,7.32]
[1719799781631,3.710533,3518.5,3517.6,10.16284]
[1719799782436,0.868413,3518.5,3517.6,10.16284]
[1719799782604,2.84207,3518.6,3517.6,10.16284]
[1719799783735,2.84214,3518.5,3517.6,10.16284]
[1719799784505,2.84214,3518.5,3517.6,7.32]
[1719799785745,2.84221,3518.4,3517.6,7.32]
[1719799788920,3.0,3518.7,3517.6,10.16279]
[1719799788921,5.84203,3518.7,3517.6,10.16279]
[1719799789108,0.3736033,3518.6,3517.6,10.16279]
[1719799789629,2.84209,3518.6,3517.6,10.16279]
[1719799790097,2.84244,3518.1,3517.6,7.32]
[1719799790506,2.84229,3518.3,3517.6,7.32]
[1719799790943,2.84229,3518.3,3517.5,4.4792]
[1719799790944,2.8422,3518.4,3517.5,4.4792]
[1719799791145,0.28422,3518.3,3517.5,7.32212]
[1719799791707,2.84209,3518.6,3517.6,0.05684965]
[1719799791908,5.84212,3518.5,3517.6,0.05684965]
[1719799792333,5.84212,3518.5,3517.6,2.89967965]
[1719799792649,0.736033,3518.9,3518.1,4.5062]
[1719799792944,3.0,3519.3,3518.2,0.05683942]
[1719799793723,2.8416,3519.2,3518.1,7.34858]
[1719799793908,3.0,3519.1,3518.1,7.34858]
[1719799794404,3.0,3519.1,3518.2,2.8423]
[1719799794607,3.8683,3519.1,3518.2,2.8423]
[1719799795611,2.015,3519.8,3518.2,2.8423]
[1719799795612,4.1299,3520.3,3519.1,4.16]
[1719799795818,2.84083,3520.1,3519.2,0.05682378]
[1719799796034,2.84071,3520.3,3519.2,2.89836378]
[1719799796225,2.8406,3520.4,3519.4,2.84137]
[1719799796529,2.84067,3520.3,3519.5,0.05681792]
[1719799797315,2.84067,3520.3,3519.4,2.84137]
[1719799799019,2.84067,3520.3,3519.2,2.84154]
[1719799799220,3.49130703,3520.3,3519.3,2.84143]
[1719799799416,0.8251903,3520.5,3519.6,4.2281]
[1719799799637,2.84059,3520.4,3519.6,4.2281]
[1719799801234,2.84099,3519.9,3519.2,4.2299]
[1719799801580,0.284099,3519.8,3519.2,4.2299]
[1719799801724,3.125179,3519.8,3518.7,4.3225]
[1719799802263,2.8413,3519.6,3518.7,4.3225]
[1719799803176,2.84132,3519.5,3518.7,4.3225]
[1719799803326,2.84191,3518.8,3518.6,7.32]
[1719799803665,2.84179,3518.9,3518.0,24.2416]
[1719799803963,2.84169,3519.1,3518.1,0.05684184]
[1719799804148,3.0,3519.0,3518.1,2.89927184]
[1719799804472,3.0,3519.2,3518.4,2.84219]
[1719799804673,0.6125612,3519.1,3518.1,2.84243]
[1719799805389,0.6125612,3519.1,3518.2,2.84235]
[1719799805577,0.6125612,3519.1,3518.5,2.84209]
[1719799805776,3.0,3519.3,3518.6,4.50843353]
[1719799805964,0.284132,3519.4,3518.6,4.50843353]
[1719799806759,0.284132,3519.4,3518.7,0.05683093]
[1719799807854,3.0,3519.7,3518.7,0.05683093]
[1719799807855,2.84124,3519.6,3518.7,0.05683093]
[1719799808093,3.0,3519.7,3518.7,0.05683093]
[1719799808094,5.84132,3519.5,3518.7,0.05683093]
[1719799808291,2.84132,3519.5,3518.6,4.4516]
[1719799808591,3.0,3519.4,3518.6,4.4516]
[1719799808778,0.584132,3519.3,3518.6,4.4516]
[1719799809862,2.84131,3519.5,3518.6,4.4516]
[1719799810157,3.0,3519.4,3518.6,4.4516]
[1719799811182,0.284099,3519.8,3518.7,0.05683094]
[1719799811384,0.284099,3519.8,3518.8,2.8986969]
[1719799811690,0.284099,3519.8,3518.8,0.0568269]
[1719799811881,0.3284099,3519.7,3518.8,0.0568269]
[1719799812084,3.3284099,3519.7,3518.8,0.0568269]
[1719799812283,3.3284099,3519.7,3518.7,0.05682704]
[1719799812451,3.3284099,3519.7,3518.8,0.05682704]
[1719799813194,3.4704099,3519.7,3518.8,0.05682704]
[1719799813409,0.65955889,3519.6,3518.6,7.29359]
[1719799813900,2.84177,3519.0,3518.1,4.3114]
[1719799814319,2.84179,3518.9,3518.1,4.3114]
[1719799814803,2.84168,3519.1,3518.1,4.3114]